fUSD/lending_fUSD_20260303
["ID","MTS","AMOUNT","RATE_DAILY","PERIOD"]
[407458739,1772496003835,-1010.179634,8.924e-05,2]
[407458740,1772496003865,-500.0,8.924e-05,2]
[407458741,1772496003894,-500.0,8.924e-05,2]
[407458742,1772496003924,-250.0,8.969e-05,2]
[407458743,1772496003951,-195.0,8.98e-05,2]
[407458744,1772496003980,-1824.25311642,9e-05,2]
[407458745,1772496004010,-300.0,9.002e-05,2]
[407458746,1772496004039,-545.42247633,9.003e-05,2]
[407458747,1772496004068,-700.0,9.003e-05,2]
[407458748,1772496004097,-821.15392943,9.003e-05,2]
[407458749,1772496004126,-600.0,9.003e-05,2]
[407458750,1772496004155,-600.0,9.003e-05,2]
[407458751,1772496004190,-600.0,9.003e-05,2]
[407458752,1772496004218,-500.0,9.003e-05,2]
[407458753,1772496004248,-600.0,9.003e-05,2]
[407458754,1772496004278,-307.98168764,9.003e-05,2]
[407458755,1772496004705,150.0,8.98e-05,14]
[407458759,1772496026578,18032.52926822,0.00015,7]
[407458784,1772496105870,707.63259068,0.00013,15]
[407458812,1772496631679,-867.29465335,7.982e-05,2]
[407458814,1772496631740,-332.70534665,7.982e-05,2]
[407458815,1772496631750,-300.0,7.982e-05,2]
[407458816,1772496631760,-217.0,7.982e-05,2]
[407458817,1772496631771,-66718.7321072,7.983e-05,2]
[407458818,1772496631782,-1254.41808677,7.983e-05,2]
[407458819,1772496631793,-273.63724884,7.983e-05,2]
[407458820,1772496631804,-339.75260614,7.983e-05,2]
[407458821,1772496631815,-1850.0,7.983e-05,2]
[407458822,1772496631827,-22978.17407283,7.983e-05,2]
[407458823,1772496631845,-291.47,7.983e-05,2]
[407458824,1772496631856,-334.02485,7.983e-05,2]
[407458825,1772496631867,-511.41,7.983e-05,2]
[407458826,1772496631887,-276.65889505,7.983e-05,2]
[407458844,1772496637886,-10120.27819864,7.983e-05,2]
[407458845,1772496639270,-36950.06393453,7.983e-05,2]
[407458846,1772496639282,-3762.47,8.187e-05,2]
[407458847,1772496639292,-5000.0,8.194e-05,2]
[407458848,1772496639302,-150.0,8.202e-05,2]
[407458849,1772496639312,-267.115287,8.219e-05,2]
[407458850,1772496639324,-300.0,8.296e-05,2]
[407458851,1772496639335,-5000.0,8.296e-05,2]
[407458852,1772496639346,-195.0,8.363e-05,2]
[407458853,1772496639358,-300.0,8.364e-05,2]
[407458854,1772496639369,-5000.0,8.364e-05,2]
[407458855,1772496639379,-630.05461937,8.364e-05,2]
[407458856,1772496639390,-18699.26,8.364e-05,2]
[407458857,1772496639402,-195.0,8.392e-05,2]
[407458858,1772496639413,-195.0,8.392e-05,2]
[407458859,1772496639423,-500.0,8.405e-05,2]
[407458860,1772496639434,-315.60876254,8.466e-05,2]
[407458861,1772496639445,-150.0,8.643e-05,2]
[407458862,1772496639456,-115436.95,8.644e-05,2]
[407458863,1772496639467,-630.05461935,8.644e-05,2]
[407458864,1772496639478,-421.0,8.777e-05,2]
[407458866,1772496639493,-1151.0,8.781e-05,2]
[407458868,1772496639503,-420.0,8.781e-05,2]
[407458870,1772496639514,-500.0,8.924e-05,2]
[407458872,1772496639526,-500.0,8.924e-05,2]
[407458874,1772496639537,-500.0,8.924e-05,2]
[407458876,1772496639547,-407.96536498,8.924e-05,2]
[407458878,1772496639559,-630.05461935,8.924e-05,2]
[407458880,1772496639570,-327.81010607,8.937e-05,2]
[407458882,1772496639580,-209.83557561,8.937e-05,2]
[407458884,1772496639590,-500.0,8.937e-05,2]
[407458886,1772496639600,-500.0,8.937e-05,2]
[407458888,1772496639610,-500.0,8.937e-05,2]
[407458890,1772496639621,-500.0,8.937e-05,2]
[407458892,1772496639632,-500.0,8.937e-05,2]
[407458894,1772496639642,-500.0,8.937e-05,2]
[407458896,1772496639653,-500.0,8.937e-05,2]
[407458898,1772496639663,-500.0,8.937e-05,2]
[407458900,1772496639674,-500.0,8.937e-05,2]
[407458902,1772496639684,-500.0,8.937e-05,2]
[407458904,1772496639694,-500.0,8.937e-05,2]
[407458907,1772496639705,-500.0,8.937e-05,2]
[407458909,1772496639715,-500.0,8.937e-05,2]
[407458911,1772496639726,-500.0,8.937e-05,2]
[407458913,1772496639736,-500.0,8.937e-05,2]
[407458915,1772496639748,-500.0,8.937e-05,2]
[407458917,1772496639758,-500.0,8.937e-05,2]
[407458919,1772496639769,-999.99,8.938e-05,2]
[407458921,1772496639780,-9999.99,8.938e-05,2]
[407458923,1772496639791,-150.99,8.938e-05,2]
[407458925,1772496639801,-4244.22,8.938e-05,2]
[407458927,1772496639812,-9999.99,8.938e-05,2]
[407458929,1772496639823,-3683.29,8.938e-05,2]
[407458931,1772496639833,-150.99,8.938e-05,2]
[407458933,1772496639844,-299.99,8.996e-05,2]
[407458935,1772496639854,-292.01831236,9.003e-05,2]
[407458937,1772496639864,-600.0,9.003e-05,2]
[407458939,1772496639875,-600.0,9.003e-05,2]
[407458942,1772496639886,-600.0,9.003e-05,2]
[407458944,1772496639897,-600.0,9.003e-05,2]
[407458946,1772496639908,-600.0,9.003e-05,2]
[407458948,1772496639918,-600.0,9.003e-05,2]
[407458950,1772496639929,-600.0,9.003e-05,2]
[407458952,1772496639939,-600.0,9.003e-05,2]
[407458954,1772496639950,-600.0,9.003e-05,2]
[407458956,1772496639961,-500.0,9.003e-05,2]
[407458958,1772496639971,-500.0,9.003e-05,2]
[407458961,1772496639982,-708.95470502,9.003e-05,2]
[407458963,1772496639994,-545.42247633,9.003e-05,2]
[407458965,1772496640005,-500.0,9.003e-05,2]
[407458967,1772496640015,-500.0,9.003e-05,2]
[407458969,1772496640026,-500.0,9.003e-05,2]
[407458971,1772496640036,-889.55647735,9.003e-05,2]
[407458973,1772496640047,-500.0,9.003e-05,2]
[407458975,1772496640057,-600.0,9.003e-05,2]
[407458977,1772496640068,-500.0,9.003e-05,2]
[407458980,1772496640084,-500.0,9.003e-05,2]
[407458982,1772496640096,-500.0,9.003e-05,2]
[407458983,1772496640107,-500.0,9.003e-05,2]
[407458984,1772496640120,-500.0,9.003e-05,2]
[407458985,1772496640133,-700.0,9.003e-05,2]
[407458986,1772496640144,-500.0,9.003e-05,2]
[407458987,1772496640156,-500.0,9.003e-05,2]
[407458988,1772496640167,-500.0,9.003e-05,2]
[407458989,1772496640177,-500.0,9.003e-05,2]
[407458990,1772496640187,-500.0,9.003e-05,2]
[407458991,1772496640203,-500.0,9.003e-05,2]
[407458992,1772496640215,-500.0,9.003e-05,2]
[407458993,1772496640226,-800.0,9.003e-05,2]
[407458994,1772496640238,-500.0,9.003e-05,2]
[407458995,1772496640249,-500.0,9.003e-05,2]
[407458996,1772496640261,-500.0,9.003e-05,2]
[407458997,1772496640273,-500.0,9.003e-05,2]
[407458998,1772496640285,-500.0,9.003e-05,2]
[407458999,1772496640298,-898.97165137,9.003e-05,2]
[407459000,1772496640310,-500.0,9.003e-05,2]
[407459001,1772496640323,-700.0,9.003e-05,2]
[407459002,1772496640336,-500.0,9.003e-05,2]
[407459003,1772496640347,-900.0,9.003e-05,2]
[407459004,1772496640359,-500.0,9.003e-05,2]
[407459005,1772496640371,-761.03820278,9.003e-05,2]
[407459006,1772496640382,-500.0,9.003e-05,2]
[407459007,1772496640393,-998.02835675,9.003e-05,2]
[407459008,1772496640403,-500.0,9.003e-05,2]
[407459009,1772496640415,-500.0,9.003e-05,2]
[407459010,1772496640427,-300.0,9.006e-05,2]
[407459011,1772496640440,-5000.0,9.006e-05,2]
[407459012,1772496640452,-212.0,9.086e-05,2]
[407459013,1772496640464,-345.0,9.104e-05,2]
[407459014,1772496640476,-300.0,9.199e-05,2]
[407459015,1772496640490,-5000.0,9.199e-05,2]
[407459016,1772496640501,-250.0,9.199e-05,2]
[407459017,1772496640514,-195.0,9.199e-05,2]
[407459018,1772496640527,-2715.72,9.217e-05,2]
[407459019,1772496640539,-399.0,9.237e-05,2]
[407459020,1772496640557,-327.0,9.256e-05,2]
[407459021,1772496640569,-500.0,9.277e-05,2]
[407459022,1772496640582,-270.0,9.359e-05,2]
[407459023,1772496640593,-232.0,9.377e-05,2]
[407459024,1772496640605,-163.0,9.396e-05,2]
[407459025,1772496640619,-250.0,9.408e-05,2]
[407459026,1772496640632,-195.0,9.408e-05,2]
[407459027,1772496640644,-250.0,9.408e-05,2]
[407459028,1772496640657,-223018.79925264,9.505e-05,2]
[407459029,1772496640670,-255.0,9.507e-05,2]
[407459030,1772496640682,-500.0,9.551e-05,2]
[407459031,1772496640695,-2678.29,9.595e-05,2]
[407459032,1772496640708,-1000.0,9.6e-05,2]
[407459033,1772496640719,-248.31,9.639e-05,2]
[407459034,1772496640731,-587.0,9.659e-05,2]
[407459035,1772496640742,-942.12,9.67e-05,2]
[407459036,1772496640755,-29999.99,9.67e-05,2]
[407459037,1772496640767,-9999.99,9.67e-05,2]
[407459038,1772496640782,-7669.92,9.685e-05,2]
[407459039,1772496640801,-1600.0,9.69e-05,2]
[407459040,1772496640814,-333.894109,9.75e-05,2]
[407459041,1772496640828,-205.0,9.8e-05,2]
[407459042,1772496640842,-500.0,9.825e-05,2]
[407459043,1772496640853,-98942.432751,9.95e-05,2]
[407459044,1772496640866,-351.48042106,0.0001,2]
[407459045,1772496640879,-277.52298937,0.0001,2]
[407459046,1772496640890,-1967.73880654,0.0001,2]
[407459047,1772496640905,-151.0,0.0001,2]
[407459048,1772496640917,-151.0,0.0001,2]
[407459049,1772496640929,-151.0,0.0001,2]
[407459050,1772496640941,-151.0,0.0001,2]
[407459051,1772496640953,-151.0,0.0001,2]
[407459052,1772496640965,-500.0,0.0001,2]
[407459053,1772496640980,-500.0,0.0001,2]
[407459054,1772496640994,-500.0,0.0001,2]
[407459055,1772496641005,-500.0,0.0001,2]
[407459056,1772496641016,-500.0,0.0001,2]
[407459057,1772496641027,-500.0,0.0001,2]
[407459058,1772496641040,-500.0,0.0001,2]
[407459059,1772496641051,-500.0,0.0001,2]
[407459060,1772496641062,-500.0,0.0001,2]
[407459061,1772496641073,-500.0,0.0001,2]
[407459062,1772496641084,-500.0,0.0001,2]
[407459063,1772496641097,-500.0,0.0001,2]
[407459064,1772496641109,-500.0,0.0001,2]
[407459065,1772496641126,-500.0,0.0001,2]
[407459066,1772496641138,-500.0,0.0001,2]
[407459067,1772496641150,-500.0,0.0001,2]
[407459068,1772496641161,-500.0,0.0001,2]
[407459069,1772496641172,-500.0,0.0001,2]
[407459070,1772496641183,-500.0,0.0001,2]
[407459071,1772496641195,-500.0,0.0001,2]
[407459072,1772496641207,-500.0,0.0001,2]
[407459073,1772496641217,-500.0,0.0001,2]
[407459074,1772496641228,-151.0,0.0001,2]
[407459075,1772496641239,-151.0,0.0001,2]
[407459076,1772496641255,-151.0,0.0001,2]
[407459077,1772496641266,-151.0,0.0001,2]
[407459078,1772496641277,-151.0,0.0001,2]
[407459079,1772496641289,-151.0,0.0001,2]
[407459080,1772496641301,-151.0,0.0001,2]
[407459081,1772496641313,-151.0,0.0001,2]
[407459082,1772496641325,-151.0,0.0001,2]
[407459083,1772496641336,-151.0,0.0001,2]
[407459084,1772496641347,-151.0,0.0001,2]
[407459085,1772496641358,-1500.0,0.00010057,2]
[407459086,1772496641371,-581.46800157,0.00010099,2]
[407459087,1772496641402,-10000.0,0.00010398,2]
[407459088,1772496641414,-8906.77258713,0.00010424,2]
[407459089,1772496641425,-578.94021816,0.00010558,2]
[407459090,1772496641435,-823.0,0.00010624,2]
[407459091,1772496641447,-500.62963794,0.00010627,2]
[407459092,1772496641459,-500.2822626,0.00010627,2]
[407459093,1772496641470,-500.0,0.00010627,2]
[407459094,1772496641482,-500.27522618,0.00010627,2]
[407459095,1772496641497,-500.26498053,0.00010627,2]
[407459096,1772496641508,-501.24692503,0.00010627,2]
[407459097,1772496641520,-500.0,0.00010627,2]
[407459098,1772496641534,-500.0,0.00010627,2]
[407459099,1772496641546,-500.0,0.00010627,2]
[407459100,1772496641558,-5613.91536733,0.00010657,2]
[407459101,1772496641570,-1000.0,0.000108,2]
[407459102,1772496641581,-250.0,0.00010818,2]
[407459103,1772496641594,-1600.0,0.00010901,2]
[407459104,1772496641609,-500.0,0.00010959,2]
[407459105,1772496641621,-166.66,0.00010959,2]
[407459106,1772496641632,-2809.04020169,0.00011,2]
[407459107,1772496641643,-166.66,0.00011068,2]
[407459108,1772496641656,-38237.76692102,0.00011099,2]
[407459109,1772496641668,-38237.76692095,0.00011099,2]
[407459110,1772496641679,-38237.76692095,0.00011099,2]
[407459111,1772496641691,-37462.296941,0.00011099,2]
[407459112,1772496641702,-37462.296941,0.00011099,2]
[407459113,1772496641713,-37462.296941,0.00011099,2]
[407459114,1772496641725,-500.77014942,0.00011175,2]
[407459115,1772496641736,-384.74874007,0.00011175,2]
[407459116,1772496641748,-1000.0,0.00011175,2]
[407459117,1772496641759,-1000.0,0.00011175,2]
[407459118,1772496641770,-166.66,0.00011178,2]
[407459119,1772496641782,-155.59,0.00011233,2]
[407459120,1772496641795,-166.66,0.00011288,2]
[407459121,1772496641807,-166.66,0.00011397,2]
[407459122,1772496641818,-166.66,0.00011507,2]
[407459123,1772496641830,-1152.0,0.00011687,2]
[407459124,1772496641840,-1500.0,0.00011723,2]
[407459125,1772496641852,-501.97562795,0.00011723,2]
[407459126,1772496641863,-37462.296941,0.00011761,2]
[407459127,1772496641874,-330.40889181,0.00011818,2]
[407459128,1772496641885,-500.0,0.00011836,2]
[407459129,1772496641896,-733.116385,0.00011977,2]
[407459130,1772496641906,-500.0,0.00012,2]
[407459131,1772496641917,-500.0,0.00012,2]
[407459132,1772496641928,-500.0,0.00012,2]
[407459133,1772496641939,-600.0,0.00012,2]
[407459134,1772496641949,-600.0,0.00012,2]
[407459135,1772496641960,-600.0,0.00012,2]
[407459136,1772496641971,-500.0,0.00012,2]
[407459137,1772496641982,-600.0,0.00012,2]
[407459138,1772496641994,-500.0,0.00012,2]
[407459139,1772496642004,-600.0,0.00012,2]
[407459140,1772496642016,-600.0,0.00012,2]
[407459141,1772496642027,-600.0,0.00012,2]
[407459142,1772496642038,-600.0,0.00012,2]
[407459143,1772496642049,-500.0,0.00012,2]
[407459144,1772496642059,-600.0,0.00012,2]
[407459145,1772496642071,-600.0,0.00012,2]
[407459146,1772496642083,-500.0,0.00012,2]
[407459147,1772496642093,-600.0,0.00012,2]
[407459148,1772496642104,-600.0,0.00012,2]
[407459149,1772496642116,-500.0,0.00012,2]
[407459150,1772496642128,-600.0,0.00012,2]
[407459151,1772496642140,-500.0,0.00012,2]
[407459152,1772496642151,-600.0,0.00012,2]
[407459153,1772496642172,-500.0,0.00012,2]
[407459154,1772496642185,-500.0,0.00012,2]
[407459155,1772496642196,-500.0,0.00012,2]
[407459156,1772496642207,-500.0,0.00012,2]
[407459157,1772496642218,-500.0,0.00012,2]
[407459158,1772496642229,-500.0,0.00012,2]
[407459159,1772496642242,-500.0,0.00012,2]
[407459160,1772496642253,-500.0,0.00012,2]
[407459161,1772496642265,-500.0,0.00012,2]
[407459162,1772496642276,-500.0,0.00012,2]
[407459163,1772496642289,-500.0,0.00012,2]
[407459164,1772496642301,-500.0,0.00012,2]
[407459165,1772496642313,-500.0,0.00012,2]
[407459166,1772496642324,-500.0,0.00012,2]
[407459167,1772496642335,-500.0,0.00012,2]
[407459168,1772496642347,-500.0,0.00012,2]
[407459169,1772496642358,-500.0,0.00012,2]
[407459170,1772496642369,-500.0,0.00012,2]
[407459171,1772496642380,-500.0,0.00012,2]
[407459172,1772496642392,-500.0,0.00012,2]
[407459173,1772496642403,-500.0,0.00012,2]
[407459174,1772496642414,-500.0,0.00012,2]
[407459175,1772496642426,-500.0,0.00012,2]
[407459176,1772496642437,-500.0,0.00012,2]
[407459177,1772496642447,-500.0,0.00012,2]
[407459178,1772496642459,-500.0,0.00012,2]
[407459179,1772496642470,-500.0,0.00012,2]
[407459180,1772496642484,-500.0,0.00012,2]
[407459181,1772496642500,-500.0,0.00012,2]
[407459182,1772496642511,-500.0,0.00012,2]
[407459183,1772496642523,-500.0,0.00012,2]
[407459185,1772496642536,-500.0,0.00012,2]
[407459187,1772496642547,-500.0,0.00012,2]
[407459189,1772496642559,-500.0,0.00012,2]
[407459191,1772496642569,-500.0,0.00012,2]
[407459193,1772496642581,-500.0,0.00012,2]
[407459194,1772496642592,-500.0,0.00012,2]
[407459195,1772496642602,-500.0,0.00012,2]
[407459196,1772496642613,-500.0,0.00012,2]
[407459197,1772496642623,-500.0,0.00012,2]
[407459198,1772496642635,-500.0,0.00012,2]
[407459199,1772496642645,-500.0,0.00012,2]
[407459200,1772496642656,-500.0,0.00012,2]
[407459201,1772496642667,-500.0,0.00012,2]
[407459202,1772496642678,-500.0,0.00012,2]
[407459203,1772496642689,-500.0,0.00012,2]
[407459204,1772496642704,-500.0,0.00012,2]
[407459205,1772496642714,-1000.0,0.00012,2]
[407459206,1772496642726,-1600.0,0.00012113,2]
[407459207,1772496642737,-400.672931,0.00012188,2]
[407459208,1772496642748,-2000.0,0.00012271,2]
[407459209,1772496642760,-308.80105149,0.000125,2]
[407459210,1772496642771,-24519.84,0.00012645,2]
[407459211,1772496642782,-1147.691553,0.00012717,2]
[407459213,1772496642793,-837.761655,0.00012717,2]
[407459214,1772496642804,-37462.296941,0.00012736,2]
[407459215,1772496642815,-2500.0,0.00012819,2]
[407459216,1772496642826,-1218.0,0.00012856,2]
[407459217,1772496642837,-200.0,0.00013196,2]
[407459218,1772496642848,-500.0,0.00013196,2]
[407459219,1772496642859,-200.0,0.00013196,2]
[407459220,1772496642870,-500.0,0.00013196,2]
[407459221,1772496642881,-200.0,0.00013196,2]
[407459222,1772496642893,-500.0,0.00013196,2]
[407459223,1772496642904,-200.0,0.00013196,2]
[407459224,1772496642915,-257.65938732,0.00013196,2]
[407459225,1772496642926,-200.0,0.00013196,2]
[407459226,1772496642937,-500.0,0.00013196,2]
[407459227,1772496642949,-200.0,0.00013196,2]
[407459228,1772496642960,-500.0,0.00013196,2]
[407459229,1772496642971,-200.0,0.00013196,2]
[407459230,1772496642981,-500.0,0.00013196,2]
[407459231,1772496642993,-250.0,0.00013196,2]
[407459232,1772496643004,-500.0,0.00013196,2]
[407459233,1772496643015,-200.0,0.00013196,2]
[407459234,1772496643026,-250.0,0.00013196,2]
[407459235,1772496643037,-500.0,0.00013196,2]
[407459236,1772496643047,-200.0,0.00013196,2]
[407459237,1772496643058,-250.0,0.00013196,2]
[407459238,1772496643069,-500.0,0.00013196,2]
[407459239,1772496643080,-200.0,0.00013196,2]
[407459240,1772496643091,-250.0,0.00013196,2]
[407459241,1772496643102,-200.0,0.00013196,2]
[407459242,1772496644086,-500.0,0.00013196,2]
[407459243,1772496644109,-250.0,0.00013196,2]
[407459244,1772496644127,-500.0,0.00013196,2]
[407459245,1772496644149,-250.0,0.00013196,2]
[407459246,1772496644173,-250.0,0.00013196,2]
[407459247,1772496644190,-250.0,0.00013196,2]
[407459248,1772496644201,-250.0,0.00013196,2]
[407459249,1772496644212,-250.0,0.00013196,2]
[407459250,1772496644222,-250.0,0.00013196,2]
[407459251,1772496644234,-721.12765535,0.00013196,2]
[407459252,1772496644244,-693.3919763,0.00013196,2]
[407459253,1772496644254,-500.0,0.00013196,2]
[407459254,1772496644266,-500.0,0.00013196,2]
[407459255,1772496644276,-250.0,0.00013196,2]
[407459256,1772496644288,-500.0,0.00013196,2]
[407459257,1772496644297,-250.0,0.00013196,2]
[407459258,1772496644307,-500.0,0.00013196,2]
[407459259,1772496644317,-250.0,0.00013196,2]
[407459260,1772496644327,-500.0,0.00013196,2]
[407459261,1772496644337,-250.0,0.00013196,2]
[407459262,1772496644347,-500.0,0.00013196,2]
[407459263,1772496644356,-250.0,0.00013196,2]
[407459264,1772496644367,-500.0,0.00013196,2]
[407459265,1772496644377,-500.0,0.00013196,2]
[407459266,1772496644387,-250.0,0.00013196,2]
[407459267,1772496644397,-500.0,0.00013196,2]
[407459268,1772496644407,-250.0,0.00013196,2]
[407459269,1772496644417,-500.0,0.00013196,2]
[407459270,1772496644428,-250.0,0.00013196,2]
[407459271,1772496644438,-500.0,0.00013196,2]
[407459272,1772496644449,-500.0,0.00013196,2]
[407459273,1772496644461,-250.0,0.00013196,2]
[407459274,1772496644471,-500.0,0.00013196,2]
[407459275,1772496644481,-500.0,0.00013196,2]
[407459276,1772496644495,-250.0,0.00013196,2]
[407459277,1772496644505,-500.0,0.00013196,2]
[407459278,1772496644515,-250.0,0.00013196,2]
[407459279,1772496644526,-500.0,0.00013196,2]
[407459280,1772496644536,-500.0,0.00013196,2]
[407459281,1772496644546,-500.0,0.00013196,2]
[407459282,1772496644557,-500.0,0.00013196,2]
[407459283,1772496644566,-500.0,0.00013196,2]
[407459284,1772496644576,-151.0,0.00013196,2]
[407459285,1772496644587,-151.0,0.00013196,2]
[407459286,1772496644597,-500.0,0.00013196,2]
[407459287,1772496644607,-500.0,0.00013196,2]
[407459288,1772496644618,-151.0,0.00013196,2]
[407459289,1772496644629,-500.0,0.00013196,2]
[407459290,1772496644639,-151.0,0.00013196,2]
[407459291,1772496644649,-151.0,0.00013196,2]
[407459292,1772496644659,-151.0,0.00013196,2]
[407459293,1772496644669,-151.0,0.00013196,2]
[407459294,1772496644680,-151.0,0.00013196,2]
[407459295,1772496644689,-151.0,0.00013196,2]
[407459296,1772496644699,-277.35679052,0.00013196,2]
[407459297,1772496644709,-151.0,0.00013196,2]
[407459298,1772496644719,-151.0,0.00013196,2]
[407459299,1772496644729,-151.0,0.00013196,2]
[407459300,1772496644738,-250.0,0.00013196,2]
[407459301,1772496644748,-174.61919141,0.00013196,2]
[407459302,1772496644758,-250.0,0.00013196,2]
[407459303,1772496644768,-250.0,0.00013196,2]
[407459304,1772496644778,-250.0,0.00013196,2]
[407459305,1772496644788,-250.0,0.00013196,2]
[407459306,1772496644798,-250.0,0.00013196,2]
[407459307,1772496644807,-250.0,0.00013196,2]
[407459308,1772496644818,-250.0,0.00013196,2]
[407459309,1772496644828,-250.0,0.00013196,2]
[407459310,1772496644840,-250.0,0.00013196,2]
[407459311,1772496644850,-250.0,0.00013196,2]
[407459312,1772496644860,-578.20924308,0.00013196,2]
[407459313,1772496644870,-1000.0,0.000132,2]
[407459314,1772496644880,-719.04747942,0.00013251,2]
[407459315,1772496644890,-151.0,0.00013251,2]
[407459316,1772496644899,-745.65223616,0.00013306,2]
[407459317,1772496644909,-151.0,0.00013306,2]
[407459318,1772496644919,-1600.0,0.00013324,2]
[407459319,1772496644929,-773.2413689,0.00013361,2]
[407459320,1772496644939,-151.0,0.00013361,2]
[407459321,1772496644948,-3000.0,0.00013367,2]
[407459322,1772496644959,-801.85129955,0.00013416,2]
[407459323,1772496644968,-151.0,0.00013416,2]
[407459324,1772496644979,-831.51979763,0.00013471,2]
[407459325,1772496644988,-151.0,0.00013471,2]
[407459326,1772496644998,-862.28603014,0.00013526,2]
[407459327,1772496645008,-151.0,0.00013526,2]
[407459328,1772496645017,-894.19061326,0.00013581,2]
[407459329,1772496645027,-151.0,0.00013581,2]
[407459330,1772496645038,-927.27566595,0.00013636,2]
[407459331,1772496645048,-236.83655749,0.00013636,2]
[407459332,1772496645058,-961.58486559,0.00013691,2]
[407459333,1772496645068,-500.0,0.00013698,2]
[407459334,1772496645079,-500.0,0.00013698,2]
[407459335,1772496645088,-500.0,0.00013698,2]
[407459336,1772496645098,-460.61731949,0.00013698,2]
[407459337,1772496645108,-500.0,0.00013698,2]
[407459338,1772496645117,-500.0,0.00013698,2]
[407459339,1772496645127,-500.0,0.00013698,2]
[407459340,1772496645137,-500.0,0.00013698,2]
[407459341,1772496645147,-500.0,0.00013698,2]
[407459342,1772496645156,-500.0,0.00013698,2]
[407459343,1772496645166,-500.0,0.00013698,2]
[407459344,1772496645175,-641.64468963,0.00013698,2]
[407459345,1772496645186,-540.69,0.00013698,2]
[407459346,1772496645195,-500.0,0.00013698,2]
[407459347,1772496645206,-500.0,0.00013698,2]
[407459348,1772496645215,-528.42816415,0.00013698,2]
[407459349,1772496645236,-500.0,0.00013698,2]
[407459350,1772496645248,-500.0,0.00013698,2]
[407459351,1772496645258,-500.0,0.00013698,2]
[407459352,1772496645268,-500.0,0.00013698,2]
[407459353,1772496645278,-500.0,0.00013698,2]
[407459354,1772496645288,-500.0,0.00013698,2]
[407459355,1772496645298,-500.0,0.00013698,2]
[407459356,1772496645309,-500.0,0.00013698,2]
[407459357,1772496645319,-500.0,0.00013698,2]
[407459358,1772496645329,-500.0,0.00013698,2]
[407459359,1772496645339,-500.0,0.00013698,2]
[407459360,1772496645350,-531.4712785,0.00013698,2]
[407459361,1772496645360,-37462.296941,0.0001371,2]
[407459362,1772496645370,-500.0,0.00013744,2]
[407459363,1772496645383,-287.61899177,0.00013744,2]
[407459364,1772496645393,-181.08010149,0.00013744,2]
[407459365,1772496645403,-997.16350561,0.00013746,2]
[407459366,1772496645414,-3500.0,0.00013915,2]
[407459367,1772496645426,-500.0,0.00014,2]
[407459368,1772496645437,-2085.50116784,0.00014192,2]
[407459369,1772496645447,-500.0,0.00014292,2]
[407459370,1772496645458,-298.26089446,0.00014292,2]
[407459371,1772496645469,-187.78006525,0.00014292,2]
[407459372,1772496645480,-1000.0,0.000144,2]
[407459373,1772496645494,-4000.0,0.00014463,2]
[407459374,1772496645504,-1600.0,0.00014535,2]
[407459375,1772496645514,-37462.296941,0.00014685,2]
[407459376,1772496645526,-2085.50116778,0.0001481,2]
[407459377,1772496645539,-500.0,0.0001484,2]